[Event "Titled Tuesday Blitz August 09 Late 2022"]
[White "Alekseenko, Kirill"]
[Black "Kravtsiv, Martyn"]
[WhiteFideId "4135539"]
[BlackFideId "14113147"]
[WhiteElo "2682"]
[BlackElo "2694"]
[Result "1-0"]
[Round "08"]
[TimeControl "180+1"]
[Date "2022.08.09"]
[WhiteClock "0:00:18"]
[BlackClock "0:00:12"]

1. e4 {[%clk 0:03:00]}  e5 {[%clk 0:03:00]} 2. Nf3 {[%clk 0:02:59]}  Nc6 {[%clk 0:03:00]} 3. Bc4 {[%clk 0:02:48]}  Nf6 {[%clk 0:02:59]} 4. d3 {[%clk 0:02:33]}  Bc5 {[%clk 0:02:58]} 5. Nc3 {[%clk 0:02:32]}  a6 {[%clk 0:02:56]} 6. a4 {[%clk 0:02:32]}  d6 {[%clk 0:02:54]} 7. h3 {[%clk 0:02:29]}  h6 {[%clk 0:02:52]} 8. Be3 {[%clk 0:02:29]}  O-O {[%clk 0:02:48]} 9. O-O {[%clk 0:02:29]}  Bxe3 {[%clk 0:02:45]} 10. fxe3 {[%clk 0:02:29]}  Be6 {[%clk 0:02:45]} 11. Nd2 {[%clk 0:02:29]}  Qe7 {[%clk 0:02:34]} 12. Qe2 {[%clk 0:02:26]}  Nd8 {[%clk 0:02:24]} 13. Rf3 {[%clk 0:02:23]}  g6 {[%clk 0:02:16]} 14. Raf1 {[%clk 0:02:22]}  Nh7 {[%clk 0:02:16]} 15. Qf2 {[%clk 0:02:20]}  c6 {[%clk 0:02:12]} 16. Rg3 {[%clk 0:02:06]}  Bxc4 {[%clk 0:02:05]} 17. Nxc4 {[%clk 0:02:06]}  b5 {[%clk 0:02:04]} 18. Nd2 {[%clk 0:02:05]}  Ne6 {[%clk 0:02:02]} 19. d4 {[%clk 0:01:43]}  b4 {[%clk 0:01:58]} 20. Ne2 {[%clk 0:01:42]}  Kh8 {[%clk 0:01:44]} 21. Nc1 {[%clk 0:01:31]}  Nhg5 {[%clk 0:01:27]} 22. h4 {[%clk 0:01:22]}  Nh7 {[%clk 0:01:26]} 23. Nd3 {[%clk 0:01:22]}  exd4 {[%clk 0:01:15]} 24. exd4 {[%clk 0:01:23]}  Qxh4 {[%clk 0:01:15]} 25. Nxb4 {[%clk 0:01:16]}  c5 {[%clk 0:01:14]} 26. dxc5 {[%clk 0:01:13]}  dxc5 {[%clk 0:01:15]} 27. Nd5 {[%clk 0:01:13]}  Nd4 {[%clk 0:01:14]} 28. Rc3 {[%clk 0:00:53]}  Qh5 {[%clk 0:01:03]} 29. Nf3 {[%clk 0:00:51]}  Ne6 {[%clk 0:00:59]} 30. Qg3 {[%clk 0:00:48]}  Rad8 {[%clk 0:00:51]} 31. Ne5 {[%clk 0:00:45]}  Nd4 {[%clk 0:00:42]} 32. Re3 {[%clk 0:00:39]}  Ng5 {[%clk 0:00:28]} 33. Nf4 {[%clk 0:00:31]}  Nxe4 {[%clk 0:00:20]} 34. Rxe4 {[%clk 0:00:28]}  Qf5 {[%clk 0:00:12]} 35. Nfxg6+ {[%clk 0:00:25]}  fxg6 {[%clk 0:00:12]} 36. Nxg6+ {[%clk 0:00:18]} 1-0


[Site "https://www.chess.com"]

[Event "Titled Tuesday Blitz August 09 Late 2022"]
[White "Averjanov, Alexey"]
[Black "Manukian, Artak"]
[WhiteFideId "14109867"]
[BlackFideId "13301373"]
[WhiteElo "2620"]
[BlackElo "2449"]
[Result "1-0"]
[Round "08"]
[TimeControl "180+1"]
[Date "2022.08.09"]
[WhiteClock "0:02:48"]
[BlackClock "0:02:24"]

1. d4 {[%clk 0:02:57]}  c6 {[%clk 0:03:00]} 2. c4 {[%clk 0:02:57]}  d5 {[%clk 0:03:01]} 3. e3 {[%clk 0:02:57]}  Nf6 {[%clk 0:03:00]} 4. Bd3 {[%clk 0:02:57]}  Bg4 {[%clk 0:03:00]} 5. Qc2 {[%clk 0:02:56]}  e6 {[%clk 0:02:57]} 6. Nd2 {[%clk 0:02:56]}  Nbd7 {[%clk 0:02:54]} 7. Ngf3 {[%clk 0:02:56]}  Bd6 {[%clk 0:02:53]} 8. O-O {[%clk 0:02:56]}  O-O {[%clk 0:02:53]} 9. b3 {[%clk 0:02:56]}  Rc8 {[%clk 0:02:52]} 10. Bb2 {[%clk 0:02:56]}  Qe7 {[%clk 0:02:51]} 11. Ne5 {[%clk 0:02:56]}  Bh5 {[%clk 0:02:50]} 12. e4 {[%clk 0:02:56]}  dxe4 {[%clk 0:02:48]} 13. Nxe4 {[%clk 0:02:57]}  Nxe4 {[%clk 0:02:48]} 14. Bxe4 {[%clk 0:02:58]}  Bg6 {[%clk 0:02:43]} 15. Nxg6 {[%clk 0:02:57]}  hxg6 {[%clk 0:02:43]} 16. g3 {[%clk 0:02:56]}  Ba3 {[%clk 0:02:42]} 17. Bc3 {[%clk 0:02:55]}  Bb4 {[%clk 0:02:41]} 18. Bb2 {[%clk 0:02:55]}  Ba3 {[%clk 0:02:41]} 19. Rad1 {[%clk 0:02:54]}  Bxb2 {[%clk 0:02:41]} 20. Qxb2 {[%clk 0:02:55]}  Nf6 {[%clk 0:02:41]} 21. Bf3 {[%clk 0:02:54]}  Rfd8 {[%clk 0:02:41]} 22. Rd3 {[%clk 0:02:54]}  c5 {[%clk 0:02:34]} 23. Rfd1 {[%clk 0:02:54]}  cxd4 {[%clk 0:02:34]} 24. Rxd4 {[%clk 0:02:54]}  Rxd4 {[%clk 0:02:34]} 25. Qxd4 {[%clk 0:02:55]}  b6 {[%clk 0:02:34]} 26. Kg2 {[%clk 0:02:49]}  Qd7 {[%clk 0:02:24]} 27. Qxd7 {[%clk 0:02:48]} 1-0


[Site "https://www.chess.com"]

[Event "Titled Tuesday Blitz August 09 Late 2022"]
[White "Bartholomew, John"]
[Black "Ladan, Nicholas"]
[WhiteFideId "2019353"]
[BlackFideId "30918855"]
[WhiteElo "2743"]
[BlackElo "2167"]
[Result "1-0"]
[Round "08"]
[TimeControl "180+1"]
[Date "2022.08.09"]
[WhiteClock "0:00:08"]
[BlackClock "0:00:17"]

1. Nf3 {[%clk 0:03:00]}  d5 {[%clk 0:02:59]} 2. d4 {[%clk 0:03:00]}  Nf6 {[%clk 0:02:59]} 3. c4 {[%clk 0:03:00]}  e6 {[%clk 0:02:59]} 4. Bg5 {[%clk 0:02:59]}  Nbd7 {[%clk 0:02:59]} 5. Nc3 {[%clk 0:02:59]}  c6 {[%clk 0:02:56]} 6. e3 {[%clk 0:02:59]}  Qa5 {[%clk 0:02:56]} 7. cxd5 {[%clk 0:02:57]}  exd5 {[%clk 0:02:56]} 8. Bd3 {[%clk 0:02:54]}  Ne4 {[%clk 0:02:53]} 9. O-O {[%clk 0:02:46]}  Nxg5 {[%clk 0:02:48]} 10. Nxg5 {[%clk 0:02:47]}  Nf6 {[%clk 0:02:27]} 11. Qc2 {[%clk 0:02:16]}  h6 {[%clk 0:02:21]} 12. Nf3 {[%clk 0:02:15]}  Be7 {[%clk 0:02:13]} 13. Ne5 {[%clk 0:02:08]}  O-O {[%clk 0:02:12]} 14. f4 {[%clk 0:02:08]}  Ng4 {[%clk 0:01:54]} 15. Rf3 {[%clk 0:01:56]}  Nxe5 {[%clk 0:01:13]} 16. fxe5 {[%clk 0:01:53]}  Bg5 {[%clk 0:01:13]} 17. Raf1 {[%clk 0:01:48]}  Bg4 {[%clk 0:01:05]} 18. Rg3 {[%clk 0:01:41]}  Bh5 {[%clk 0:01:05]} 19. Ne2 {[%clk 0:00:53]}  c5 {[%clk 0:00:56]} 20. Nf4 {[%clk 0:00:48]}  Bg6 {[%clk 0:00:42]} 21. Bxg6 {[%clk 0:00:30]}  fxg6 {[%clk 0:00:43]} 22. Qxc5 {[%clk 0:00:25]}  Qd2 {[%clk 0:00:32]} 23. Qxd5+ {[%clk 0:00:20]}  Kh7 {[%clk 0:00:31]} 24. Qe4 {[%clk 0:00:20]}  Rf5 {[%clk 0:00:26]} 25. h4 {[%clk 0:00:14]}  Bxf4 {[%clk 0:00:18]} 26. Rxf4 {[%clk 0:00:12]}  Qe1+ {[%clk 0:00:17]} 27. Kh2 {[%clk 0:00:12]}  Raf8 {[%clk 0:00:16]} 28. Rxf5 {[%clk 0:00:09]}  Rxf5 {[%clk 0:00:17]} 29. e6 {[%clk 0:00:08]} 1-0


[Site "https://www.chess.com"]

[Event "Titled Tuesday Blitz August 09 Late 2022"]
[White "Bilych, Olexiy"]
[Black "Mcconnell, Sullivan"]
[WhiteFideId "14156504"]
[BlackFideId "30934885"]
[WhiteElo "2157"]
[BlackElo "2628"]
[Result "1/2-1/2"]
[Round "08"]
[TimeControl "180+1"]
[Date "2022.08.09"]
[WhiteClock "0:00:21"]
[BlackClock "0:00:21"]

1. e4 {[%clk 0:03:00]}  e6 {[%clk 0:03:00]} 2. d4 {[%clk 0:03:00]}  d5 {[%clk 0:03:00]} 3. Nc3 {[%clk 0:03:00]}  Nf6 {[%clk 0:03:00]} 4. e5 {[%clk 0:03:00]}  Nfd7 {[%clk 0:03:01]} 5. f4 {[%clk 0:03:01]}  c5 {[%clk 0:03:01]} 6. Nf3 {[%clk 0:03:01]}  Nc6 {[%clk 0:03:02]} 7. Be3 {[%clk 0:03:02]}  a6 {[%clk 0:03:01]} 8. Ne2 {[%clk 0:02:48]}  b5 {[%clk 0:02:57]} 9. c3 {[%clk 0:02:42]}  Qb6 {[%clk 0:02:55]} 10. h4 {[%clk 0:02:36]}  a5 {[%clk 0:02:53]} 11. h5 {[%clk 0:02:34]}  b4 {[%clk 0:02:53]} 12. Kf2 {[%clk 0:02:34]}  Ba6 {[%clk 0:02:53]} 13. f5 {[%clk 0:02:22]}  Bxe2 {[%clk 0:02:33]} 14. Bxe2 {[%clk 0:02:20]}  cxd4 {[%clk 0:02:33]} 15. cxd4 {[%clk 0:02:18]}  exf5 {[%clk 0:02:27]} 16. Qd3 {[%clk 0:02:18]}  g6 {[%clk 0:02:24]} 17. hxg6 {[%clk 0:02:16]}  fxg6 {[%clk 0:02:24]} 18. Rac1 {[%clk 0:02:05]}  Rb8 {[%clk 0:02:03]} 19. Bd1 {[%clk 0:01:48]}  b3 {[%clk 0:01:48]} 20. Bxb3 {[%clk 0:01:44]}  Nb4 {[%clk 0:01:48]} 21. Qe2 {[%clk 0:01:41]}  Bg7 {[%clk 0:01:45]} 22. Ba4 {[%clk 0:01:39]}  f4 {[%clk 0:01:45]} 23. Bxf4 {[%clk 0:01:34]}  O-O {[%clk 0:01:45]} 24. g3 {[%clk 0:01:17]}  Nxe5 {[%clk 0:01:37]} 25. Nxe5 {[%clk 0:01:05]}  Bxe5 {[%clk 0:01:36]} 26. Kg2 {[%clk 0:00:36]}  Bxf4 {[%clk 0:01:31]} 27. gxf4 {[%clk 0:00:37]}  Rxf4 {[%clk 0:01:16]} 28. Qe5 {[%clk 0:00:31]}  Rbf8 {[%clk 0:01:10]} 29. Rxh7 {[%clk 0:00:28]}  Rf2+ {[%clk 0:01:06]} 30. Kg3 {[%clk 0:00:25]}  R8f3+ {[%clk 0:00:52]} 31. Kg4 {[%clk 0:00:21]}  Rf4+ {[%clk 0:00:49]} 32. Kg3 {[%clk 0:00:21]}  R2f3+ {[%clk 0:00:41]} 33. Kg2 {[%clk 0:00:21]}  Rf2+ {[%clk 0:00:29]} 34. Kg3 {[%clk 0:00:21]}  R2f3+ {[%clk 0:00:20]} 35. Kg2 {[%clk 0:00:22]}  Rf2+ {[%clk 0:00:21]} 36. Kg3 {[%clk 0:00:21]} 1/2-1/2


[Site "https://www.chess.com"]

[Event "Titled Tuesday Blitz August 09 Late 2022"]
[White "Bortnyk, Olexandr"]
[Black "Andreikin, Dmitry"]
[WhiteFideId "14120828"]
[BlackFideId "4158814"]
[WhiteElo "2723"]
[BlackElo "2736"]
[Result "0-1"]
[Round "08"]
[TimeControl "180+1"]
[Date "2022.08.09"]
[WhiteClock "0:00:01"]
[BlackClock "0:00:08"]

1. e4 {[%clk 0:03:00]}  c5 {[%clk 0:02:58]} 2. c3 {[%clk 0:03:01]}  e6 {[%clk 0:02:57]} 3. d4 {[%clk 0:03:01]}  d5 {[%clk 0:02:57]} 4. exd5 {[%clk 0:03:02]}  exd5 {[%clk 0:02:58]} 5. Be3 {[%clk 0:03:02]}  c4 {[%clk 0:02:56]} 6. b3 {[%clk 0:03:02]}  cxb3 {[%clk 0:02:56]} 7. axb3 {[%clk 0:03:03]}  Bd6 {[%clk 0:02:56]} 8. Bd3 {[%clk 0:03:04]}  Ne7 {[%clk 0:02:56]} 9. Qf3 {[%clk 0:03:02]}  Nbc6 {[%clk 0:02:53]} 10. Ne2 {[%clk 0:03:01]}  Be6 {[%clk 0:02:53]} 11. h3 {[%clk 0:02:56]}  Qd7 {[%clk 0:02:53]} 12. Nf4 {[%clk 0:02:53]}  Bf5 {[%clk 0:02:49]} 13. O-O {[%clk 0:02:37]}  O-O {[%clk 0:02:48]} 14. Nd2 {[%clk 0:02:32]}  a5 {[%clk 0:02:38]} 15. Bb5 {[%clk 0:02:24]}  Rfc8 {[%clk 0:02:34]} 16. Rfe1 {[%clk 0:02:09]}  Nxd4 {[%clk 0:02:28]} 17. Bxd4 {[%clk 0:02:00]}  Qxb5 {[%clk 0:02:28]} 18. Nh5 {[%clk 0:01:05]}  Qd3 {[%clk 0:02:28]} 19. Nxg7 {[%clk 0:00:37]}  Qxf3 {[%clk 0:02:19]} 20. Nxf3 {[%clk 0:00:38]}  Bg6 {[%clk 0:02:19]} 21. Nh4 {[%clk 0:00:34]}  b5 {[%clk 0:02:09]} 22. g4 {[%clk 0:00:32]}  a4 {[%clk 0:02:05]} 23. b4 {[%clk 0:00:26]}  a3 {[%clk 0:01:33]} 24. Bf6 {[%clk 0:00:25]}  Rc7 {[%clk 0:01:02]} 25. Ra2 {[%clk 0:00:25]}  Kf8 {[%clk 0:00:58]} 26. Rd1 {[%clk 0:00:17]}  Be4 {[%clk 0:00:45]} 27. f3 {[%clk 0:00:15]}  Bg6 {[%clk 0:00:44]} 28. Ngf5 {[%clk 0:00:15]}  Bxf5 {[%clk 0:00:41]} 29. Nxf5 {[%clk 0:00:16]}  Nxf5 {[%clk 0:00:40]} 30. gxf5 {[%clk 0:00:17]}  Rc6 {[%clk 0:00:35]} 31. Rxd5 {[%clk 0:00:13]}  Bxb4 {[%clk 0:00:22]} 32. cxb4 {[%clk 0:00:14]}  Rxf6 {[%clk 0:00:22]} 33. Rxb5 {[%clk 0:00:15]}  Ra4 {[%clk 0:00:15]} 34. Kf2 {[%clk 0:00:14]}  Rc6 {[%clk 0:00:13]} 35. Kg3 {[%clk 0:00:05]}  Kg7 {[%clk 0:00:12]} 36. Ra5 {[%clk 0:00:02]}  Rxb4 {[%clk 0:00:08]} 37. R2xa3 {[%clk 0:00:03]}  Kf6 {[%clk 0:00:07]} 38. h4 {[%clk 0:00:02]}  Rbc4 {[%clk 0:00:07]} 39. Rd5 {[%clk 0:00:02]}  R4c5 {[%clk 0:00:04]} 40. Rxc5 {[%clk 0:00:02]}  Rxc5 {[%clk 0:00:05]} 41. Kg4 {[%clk 0:00:03]}  Rc4+ {[%clk 0:00:04]} 42. f4 {[%clk 0:00:02]}  Rc6 {[%clk 0:00:05]} 43. Ra7 {[%clk 0:00:01]}  h6 {[%clk 0:00:05]} 44. Rb7 {[%clk 0:00:01]}  Kg7 {[%clk 0:00:05]} 45. Kh5 {[%clk 0:00:02]}  Rc5 {[%clk 0:00:04]} 46. Kg4 {[%clk 0:00:01]}  Rc1 {[%clk 0:00:04]} 47. Rb6 {[%clk 0:00:01]}  Rg1+ {[%clk 0:00:04]} 48. Kh5 {[%clk 0:00:02]}  Rf1 {[%clk 0:00:03]} 49. Rb4 {[%clk 0:00:01]}  Rf2 {[%clk 0:00:03]} 50. f6+ {[%clk 0:00:01]}  Kxf6 {[%clk 0:00:03]} 51. Kxh6 {[%clk 0:00:02]}  Kf5 {[%clk 0:00:03]} 52. h5 {[%clk 0:00:02]}  Rg2 {[%clk 0:00:03]} 53. Kh7 {[%clk 0:00:02]}  f6 {[%clk 0:00:02]} 54. h6 {[%clk 0:00:02]}  Rg1 {[%clk 0:00:02]} 55. Kh8 {[%clk 0:00:02]}  Kg6 {[%clk 0:00:01]} 56. h7 {[%clk 0:00:02]}  Rc1 {[%clk 0:00:01]} 57. Rb8 {[%clk 0:00:03]}  Rc7 {[%clk 0:00:01]} 58. Kg8 {[%clk 0:00:01]}  Rg7+ {[%clk 0:00:01]} 59. Kf8 {[%clk 0:00:02]}  Rxh7 {[%clk 0:00:02]} 60. f5+ {[%clk 0:00:02]}  Kxf5 {[%clk 0:00:02]} 61. Rb5+ {[%clk 0:00:02]}  Kg4 {[%clk 0:00:03]} 62. Rb4+ {[%clk 0:00:02]}  Kg5 {[%clk 0:00:03]} 63. Kg8 {[%clk 0:00:02]}  Rd7 {[%clk 0:00:03]} 64. Rb1 {[%clk 0:00:02]}  f5 {[%clk 0:00:03]} 65. Rg1+ {[%clk 0:00:02]}  Kf4 {[%clk 0:00:03]} 66. Rf1+ {[%clk 0:00:02]}  Kg4 {[%clk 0:00:04]} 67. Rg1+ {[%clk 0:00:02]}  Kf3 {[%clk 0:00:04]} 68. Rf1+ {[%clk 0:00:03]}  Kg4 {[%clk 0:00:05]} 69. Rg1+ {[%clk 0:00:03]}  Kh3 {[%clk 0:00:05]} 70. Rf1 {[%clk 0:00:04]}  Rd5 {[%clk 0:00:06]} 71. Kf7 {[%clk 0:00:04]}  Kg2 {[%clk 0:00:06]} 72. Ra1 {[%clk 0:00:03]}  f4 {[%clk 0:00:06]} 73. Ke6 {[%clk 0:00:03]}  Rb5 {[%clk 0:00:07]} 74. Ra2+ {[%clk 0:00:02]}  Kg3 {[%clk 0:00:07]} 75. Ra1 {[%clk 0:00:01]}  f3 {[%clk 0:00:07]} 76. Rg1+ {[%clk 0:00:01]}  Kh2 {[%clk 0:00:08]} 0-1


[Site "https://www.chess.com"]

[Event "Titled Tuesday Blitz August 09 Late 2022"]
[White "Chigaev, Maksim"]
[Black "Clarke, Brandon G I"]
[WhiteFideId "4108116"]
[BlackFideId "400319"]
[WhiteElo "2487"]
[BlackElo "2414"]
[Result "1-0"]
[Round "08"]
[TimeControl "180+1"]
[Date "2022.08.09"]
[WhiteClock "0:00:03"]
[BlackClock "0:00:02"]

1. e4 {[%clk 0:03:00]}  e6 {[%clk 0:02:58]} 2. d3 {[%clk 0:03:00]}  d5 {[%clk 0:02:59]} 3. Nd2 {[%clk 0:03:00]}  Nf6 {[%clk 0:02:59]} 4. Ngf3 {[%clk 0:03:00]}  Nc6 {[%clk 0:02:59]} 5. Be2 {[%clk 0:02:58]}  Bc5 {[%clk 0:02:47]} 6. O-O {[%clk 0:02:55]}  O-O {[%clk 0:02:46]} 7. c3 {[%clk 0:02:56]}  dxe4 {[%clk 0:02:46]} 8. dxe4 {[%clk 0:02:56]}  a5 {[%clk 0:02:43]} 9. a4 {[%clk 0:02:55]}  e5 {[%clk 0:02:42]} 10. Qc2 {[%clk 0:02:55]}  Qe7 {[%clk 0:02:36]} 11. Nb3 {[%clk 0:02:51]}  Bb6 {[%clk 0:02:31]} 12. Bb5 {[%clk 0:02:51]}  Nd8 {[%clk 0:02:29]} 13. Nbd2 {[%clk 0:02:42]}  c6 {[%clk 0:02:28]} 14. Be2 {[%clk 0:02:36]}  Bc7 {[%clk 0:02:13]} 15. Nc4 {[%clk 0:02:35]}  Bg4 {[%clk 0:02:07]} 16. b3 {[%clk 0:02:29]}  Re8 {[%clk 0:01:59]} 17. Ba3 {[%clk 0:02:28]}  Qe6 {[%clk 0:01:56]} 18. Rad1 {[%clk 0:02:24]}  Nh5 {[%clk 0:01:00]} 19. h3 {[%clk 0:01:38]}  Bxf3 {[%clk 0:00:50]} 20. Bxf3 {[%clk 0:01:39]}  Nf6 {[%clk 0:00:48]} 21. Be2 {[%clk 0:01:22]}  Qc8 {[%clk 0:00:28]} 22. Ne3 {[%clk 0:01:11]}  Ne6 {[%clk 0:00:26]} 23. Nf5 {[%clk 0:01:08]}  Qb8 {[%clk 0:00:21]} 24. Bc4 {[%clk 0:01:08]}  Nf4 {[%clk 0:00:06]} 25. Be7 {[%clk 0:00:30]}  b5 {[%clk 0:00:03]} 26. axb5 {[%clk 0:00:14]}  cxb5 {[%clk 0:00:04]} 27. Bd5 {[%clk 0:00:14]}  N6xd5 {[%clk 0:00:04]} 28. exd5 {[%clk 0:00:15]}  Bd8 {[%clk 0:00:04]} 29. d6 {[%clk 0:00:15]}  g6 {[%clk 0:00:03]} 30. Bxd8 {[%clk 0:00:08]}  Qxd8 {[%clk 0:00:02]} 31. Ne7+ {[%clk 0:00:07]}  Kg7 {[%clk 0:00:03]} 32. c4 {[%clk 0:00:08]}  b4 {[%clk 0:00:03]} 33. c5 {[%clk 0:00:08]}  f6 {[%clk 0:00:01]} 34. Qe4 {[%clk 0:00:08]}  Ra7 {[%clk 0:00:01]} 35. Kh2 {[%clk 0:00:08]}  Rexe7 {[%clk 0:00:01]} 36. dxe7 {[%clk 0:00:08]}  Qxe7 {[%clk 0:00:02]} 37. c6 {[%clk 0:00:08]}  Ne6 {[%clk 0:00:02]} 38. Qc4 {[%clk 0:00:08]}  Rc7 {[%clk 0:00:03]} 39. Rd5 {[%clk 0:00:07]}  Nd4 {[%clk 0:00:03]} 40. Rxa5 {[%clk 0:00:05]}  Rxc6 {[%clk 0:00:04]} 41. Qd5 {[%clk 0:00:05]}  Rd6 {[%clk 0:00:03]} 42. Qe4 {[%clk 0:00:05]}  Rd7 {[%clk 0:00:03]} 43. Rfa1 {[%clk 0:00:05]}  Nxb3 {[%clk 0:00:03]} 44. Ra8 {[%clk 0:00:04]}  Nxa1 {[%clk 0:00:03]} 45. Rxa1 {[%clk 0:00:05]}  f5 {[%clk 0:00:03]} 46. Qc4 {[%clk 0:00:05]}  e4 {[%clk 0:00:03]} 47. Rb1 {[%clk 0:00:05]}  Qe5+ {[%clk 0:00:03]} 48. g3 {[%clk 0:00:05]}  e3 {[%clk 0:00:03]} 49. f4 {[%clk 0:00:04]}  Rd2+ {[%clk 0:00:02]} 50. Kg1 {[%clk 0:00:03]} 1-0


[Site "https://www.chess.com"]

[Event "Titled Tuesday Blitz August 09 Late 2022"]
[White "Dounis, Alexandros"]
[Black "Paravyan, David"]
[WhiteFideId "4213238"]
[BlackFideId "4194985"]
[WhiteElo "2204"]
[BlackElo "2569"]
[Result "0-1"]
[Round "08"]
[TimeControl "180+1"]
[Date "2022.08.09"]
[WhiteClock "0:00:03"]
[BlackClock "0:01:37"]

1. Nf3 {[%clk 0:02:02]}  Nf6 {[%clk 0:02:03]} 2. g3 {[%clk 0:02:01]}  g6 {[%clk 0:02:04]} 3. Bg2 {[%clk 0:02:01]}  Bg7 {[%clk 0:02:04]} 4. O-O {[%clk 0:02:02]}  O-O {[%clk 0:02:05]} 5. d4 {[%clk 0:02:02]}  d5 {[%clk 0:02:06]} 6. c4 {[%clk 0:02:02]}  c6 {[%clk 0:02:07]} 7. Qb3 {[%clk 0:02:02]}  Qb6 {[%clk 0:02:05]} 8. Nc3 {[%clk 0:01:57]}  Be6 {[%clk 0:02:06]} 9. Ng5 {[%clk 0:01:52]}  Bf5 {[%clk 0:02:05]} 10. cxd5 {[%clk 0:01:49]}  cxd5 {[%clk 0:02:06]} 11. Nxd5 {[%clk 0:01:46]}  Nxd5 {[%clk 0:02:06]} 12. Bxd5 {[%clk 0:01:45]}  Qxb3 {[%clk 0:01:59]} 13. axb3 {[%clk 0:01:37]}  Nc6 {[%clk 0:02:00]} 14. e3 {[%clk 0:01:34]}  e6 {[%clk 0:01:51]} 15. Bg2 {[%clk 0:01:25]}  Bd3 {[%clk 0:01:49]} 16. Rd1 {[%clk 0:01:16]}  Bc2 {[%clk 0:01:48]} 17. Rd2 {[%clk 0:01:12]}  Bxb3 {[%clk 0:01:48]} 18. Ra3 {[%clk 0:01:12]}  Bd5 {[%clk 0:01:46]} 19. e4 {[%clk 0:01:05]}  Bc4 {[%clk 0:01:47]} 20. d5 {[%clk 0:00:26]}  exd5 {[%clk 0:01:48]} 21. exd5 {[%clk 0:00:26]}  Nd4 {[%clk 0:01:46]} 22. Ra4 {[%clk 0:00:09]}  b5 {[%clk 0:01:46]} 23. Rxc4 {[%clk 0:00:06]}  bxc4 {[%clk 0:01:46]} 24. Nf3 {[%clk 0:00:05]}  Nb3 {[%clk 0:01:45]} 25. Rc2 {[%clk 0:00:04]}  Rfd8 {[%clk 0:01:43]} 26. Rxc4 {[%clk 0:00:03]}  Rac8 {[%clk 0:01:41]} 27. Rxc8 {[%clk 0:00:03]}  Rxc8 {[%clk 0:01:42]} 28. Be3 {[%clk 0:00:03]}  a5 {[%clk 0:01:38]} 29. h4 {[%clk 0:00:03]}  Bxb2 {[%clk 0:01:38]} 30. d6 {[%clk 0:00:03]}  Rd8 {[%clk 0:01:36]} 31. Bf4 {[%clk 0:00:03]}  Ba3 {[%clk 0:01:37]} 0-1


[Site "https://www.chess.com"]

[Event "Titled Tuesday Blitz August 09 Late 2022"]
[White "Hakobyan, Aram"]
[Black "Grischuk, Alexander"]
[WhiteFideId "13306677"]
[BlackFideId "4126025"]
[WhiteElo "2557"]
[BlackElo "2762"]
[Result "1-0"]
[Round "08"]
[TimeControl "180+1"]
[Date "2022.08.09"]
[WhiteClock "0:00:57"]
[BlackClock "0:00:01"]

1. e4 {[%clk 0:02:57]}  e6 {[%clk 0:03:00]} 2. d4 {[%clk 0:02:56]}  d5 {[%clk 0:03:00]} 3. exd5 {[%clk 0:02:57]}  exd5 {[%clk 0:03:01]} 4. Nf3 {[%clk 0:02:58]}  Nc6 {[%clk 0:03:01]} 5. Bd3 {[%clk 0:02:50]}  Bd6 {[%clk 0:03:00]} 6. O-O {[%clk 0:02:49]}  Nge7 {[%clk 0:03:00]} 7. Nc3 {[%clk 0:02:50]}  O-O {[%clk 0:02:55]} 8. Nb5 {[%clk 0:02:49]}  Nb4 {[%clk 0:02:52]} 9. Nxd6 {[%clk 0:02:49]}  Qxd6 {[%clk 0:02:52]} 10. Bb5 {[%clk 0:02:48]}  c6 {[%clk 0:02:33]} 11. Ba4 {[%clk 0:02:48]}  Bg4 {[%clk 0:02:32]} 12. h3 {[%clk 0:02:45]}  Bh5 {[%clk 0:02:32]} 13. c3 {[%clk 0:02:45]}  Na6 {[%clk 0:02:32]} 14. g4 {[%clk 0:02:42]}  Bg6 {[%clk 0:02:32]} 15. Ne5 {[%clk 0:02:43]}  f6 {[%clk 0:02:27]} 16. Nxg6 {[%clk 0:02:42]}  Nxg6 {[%clk 0:02:28]} 17. Bc2 {[%clk 0:02:41]}  Nc7 {[%clk 0:02:13]} 18. f4 {[%clk 0:02:34]}  Rae8 {[%clk 0:02:12]} 19. Qf3 {[%clk 0:02:33]}  f5 {[%clk 0:02:06]} 20. gxf5 {[%clk 0:02:10]}  Nh4 {[%clk 0:02:06]} 21. Qg4 {[%clk 0:02:11]}  Qf6 {[%clk 0:02:05]} 22. Bd2 {[%clk 0:02:11]}  Nxf5 {[%clk 0:02:03]} 23. Rae1 {[%clk 0:02:11]}  Rxe1 {[%clk 0:01:50]} 24. Rxe1 {[%clk 0:02:12]}  Nb5 {[%clk 0:01:49]} 25. Re5 {[%clk 0:01:52]}  Nbd6 {[%clk 0:01:49]} 26. b3 {[%clk 0:01:51]}  g6 {[%clk 0:01:19]} 27. Bd3 {[%clk 0:01:51]}  Kg7 {[%clk 0:01:14]} 28. c4 {[%clk 0:01:50]}  Nh6 {[%clk 0:00:06]} 29. Qe2 {[%clk 0:01:41]}  Ndf5 {[%clk 0:00:03]} 30. Bc3 {[%clk 0:01:35]}  Rd8 {[%clk 0:00:03]} 31. Re6 {[%clk 0:01:33]}  Qf7 {[%clk 0:00:01]} 32. Ba5 {[%clk 0:01:24]}  b6 {[%clk 0:00:01]} 33. Qe5+ {[%clk 0:01:24]}  Kg8 {[%clk 0:00:01]} 34. Bb4 {[%clk 0:01:25]}  Qd7 {[%clk 0:00:01]} 35. cxd5 {[%clk 0:01:22]}  cxd5 {[%clk 0:00:02]} 36. Kh2 {[%clk 0:01:03]}  Qf7 {[%clk 0:00:02]} 37. Bb5 {[%clk 0:00:57]}  Qf8 {[%clk 0:00:01]} 38. Bxf8 {[%clk 0:00:57]} 1-0


[Site "https://www.chess.com"]